[Event "GER-chT States Women 2022"]
[Site "Braunfels"]
[Date "2022.06.16"]
[Round "1.8"]
[White "Sereda, Yaroslava"]
[Black "Johe, Hildegard"]
[Result "1-0"]
[ECO "B07"]
[WhiteElo "1698"]
[BlackElo "1353"]
[Annotator "NA RC COMBH"]
[PlyCount "49"]
[EventDate "2022.06.15"]
[EventType "swiss"]
[EventCountry "GER"]
[SourceTitle "playchess.com"]
[Source "ChessBase"]
[SourceQuality "1"]
[TimeControl "40/5400+30:1800+30"]

1. e4 {[%emt 0:00:03]} d6 {[%emt 0:00:11]} 2. d4 {[%emt 0:00:09]} Nf6 {[%emt 0:00:12]} 3. Nc3 {[%emt 0:00:24]} g6 {[%emt 0:00:49]} 4. Bc4 {[%emt 0:07:31]} Bg7 {[%emt 0:01:22]} 5. f4 {[%emt 0:02:41]} e6 {[%emt 0:13:00]} 6. Bb3 {[%emt 0:06:39]} O-O {[%emt 0:07:50]} 7. Nf3 {[%emt 0:01:36]} h6 {[%emt 0:03:18]} 8. O-O {[%emt 0:01:47]} Nc6 {[%emt 0:04:55]} 9. a3 {[%emt 0:02:55]} b6 {[%emt 0:01:14]} 10. Qd3 {[%emt 0:08:49]} Bb7 {[%emt 0:04:58]} 11. f5 {[%emt 0:02:59]} exf5 {[%emt 0:09:20]} 12. exf5 {[%emt 0:00:32]} g5 {[%emt 0:00:41]} 13. Ne2 {[%emt 0:09:45]} Ne7 {[%emt 0:06:09]} 14. Ng3 {[%emt 0:02:33]} Qc8 {[%emt 0:02:30]} 15. Re1 {[%emt 0:10:29]} Qd7 {[%emt 0:04:06]} 16. Bd2 {[%emt 0:04:20]} a5 {[%emt 0:03:04]} 17. c4 {[%emt 0:04:56]} Rae8 {[%emt 0:04:53]} 18. Bc3 {[%emt 0:02:45]} Bxf3 {[%emt 0:03:04]} 19. Qxf3 {[%emt 0:00:31]} d5 {[%emt 0:03:00]} 20. c5 {[%emt 0:04:16]} a4 {[%emt 0:02:05]} 21. Bc2 {[%emt 0:00:36]} b5 {[%emt 0:00:23]} 22. Nh5 {[%emt 0:02:54]} c6 {[%emt 0:02:03]} 23. Qh3 {[%emt 0:02:41]} Kh7 {[%emt 0:01:28]} 24. Bd2 {[%emt 0:01:48]} Nxh5 {[%emt 0:03:05]} 25. f6+ {[%emt 0:00:27]} 1-0

[Event "GER-chT States Women 2022"]
[Site "Braunfels"]
[Date "2022.06.16"]
[Round "1.9"]
[White "Doluhanova, Evgeniya"]
[Black "Koehler, Inken"]
[Result "1-0"]
[ECO "B28"]
[WhiteElo "2270"]
[BlackElo "2002"]
[Annotator "NA RC"]
[PlyCount "87"]
[EventDate "2022.06.15"]
[EventType "swiss"]
[EventCountry "GER"]
[SourceTitle "playchess.com"]
[Source "ChessBase"]
[SourceQuality "1"]
[TimeControl "40/5400+30:1800+30"]

1. e4 {[%emt 0:00:08]} c5 {[%emt 0:00:19]} 2. Nf3 {[%emt 0:00:16]} a6 {[%emt 0:00:11]} 3. c3 {[%emt 0:01:53]} d5 {[%emt 0:00:20]} 4. exd5 {[%emt 0:00:39]} Qxd5 {[%emt 0:00:07]} 5. d4 {[%emt 0:00:13]} Nf6 {[%emt 0:00:25]} 6. dxc5 {[%emt 0:05:55]} Qxc5 {[%emt 0:05:51]} 7. Be3 {[%emt 0:01:09]} Qc7 {[%emt 0:00:16]} 8. h3 {[%emt 0:01:22]} e5 {[%emt 0:05:27]} 9. Nbd2 {[%emt 0:02:06]} Be6 {[%emt 0:10:31]} 10. Qa4+ {[%emt 0:06:33]} Nbd7 {[%emt 0:03:19]} 11. Bc4 {[%emt 0:05:41]} Bxc4 {[%emt 0:03:54]} 12. Qxc4 {[%emt 0:00:09]} Bd6 {[%emt 0:04:05]} 13. O-O {[%emt 0:03:49]} O-O {[%emt 0:01:14]} 14. Rad1 {[%emt 0:03:31]} b5 {[%emt 0:12:40]} 15. Qb3 {[%emt 0:06:08]} Nc5 {[%emt 0:04:46]} 16. Qc2 {[%emt 0:02:00]} Ne6 {[%emt 0:01:43]} 17. Ne4 {[%emt 0:02:40]} Nxe4 {[%emt 0:02:18]} 18. Qxe4 {[%emt 0:00:10]} Rad8 {[%emt 0:05:51]} 19. Rfe1 {[%emt 0:03:24]} Kh8 {[%emt 0:07:07]} 20. Qf5 {[%emt 0:03:31]} Rfe8 {[%emt 0:06:06]} 21. Bg5 {[%emt 0:10:40]} f6 {[%emt 0:02:11]} 22. Bh4 {[%emt 0:00:49]} Nf4 {[%emt 0:09:35]} 23. Bg3 {[%emt 0:07:15]} Ng6 {[%emt 0:02:53]} 24. h4 {[%emt 0:02:02]} Bc5 {[%emt 0:04:16]} 25. h5 {[%emt 0:02:16]} Ne7 {[%emt 0:00:17]} 26. Qg4 {[%emt 0:05:52]} Ng8 {[%emt 0:00:12]} 27. Qe4 {[%emt 0:03:36]} Qf7 {[%emt 0:01:17]} 28. Qc6 {[%emt 0:01:43]} Qc4 {[%emt 0:02:39]} 29. Qxa6 {[%emt 0:05:22]} Ra8 {[%emt 0:00:34]} 30. Qb7 {[%emt 0:00:16]} Ra7 {[%emt 0:00:53]} 31. Qd5 {[%emt 0:01:50]} Rxa2 {[%emt 0:01:12]} 32. b4 {[%emt 0:02:45]} Bb6 {[%emt 0:02:19]} 33. Qxc4 {[%emt 0:04:53]} bxc4 {[%emt 0:00:01]} 34. Rd6 {[%emt 0:00:45]} Ba7 {[%emt 0:00:46]} 35. Rd2 {[%emt 0:03:29]} Ra3 {[%emt 0:00:53]} 36. Rd7 {[%emt 0:00:10]} Ra8 {[%emt 0:01:10]} 37. Red1 {[%emt 0:02:14]} Rxc3 {[%emt 0:00:37]} 38. Nxe5 {[%emt 0:00:33]} Bxf2+ {[%emt 0:00:38]} 39. Kxf2 {[%emt 0:00:35]} Rc2+ {[%emt 0:00:09]} 40. Kg1 {[%emt 0:00:34]} fxe5 {[%emt 0:00:17]} 41. Bxe5 {[%emt 0:30:08]} Nf6 {[%emt 0:30:28]} 42. Rd8+ {[%emt 0:00:07]} Rxd8 {[%emt 0:00:18]} 43. Rxd8+ {[%emt 0:00:04]} Ng8 {[%emt 0:00:06]} 44. h6 {[%emt 0:00:16]} 1-0

[Event "GER-chT States Women 2022"]
[Site "Braunfels"]
[Date "2022.06.16"]
[Round "1.10"]
[White "Braeutigam, Irina"]
[Black "Jussupow, Nadia"]
[Result "1/2-1/2"]
[ECO "C00"]
[WhiteElo "2013"]
[BlackElo "2146"]
[Annotator "NA RC"]
[PlyCount "52"]
[EventDate "2022.06.15"]
[EventType "swiss"]
[EventCountry "GER"]
[SourceTitle "playchess.com"]
[Source "ChessBase"]
[SourceQuality "1"]
[TimeControl "40/5400+30:1800+30"]

1. e4 {[%emt 0:00:10]} e6 {[%emt 0:00:31]} 2. d3 {[%emt 0:00:43]} d5 {[%emt 0:02:07]} 3. Qe2 {[%emt 0:00:30]} Nf6 {[%emt 0:00:42]} 4. g3 {[%emt 0:00:52]} Bc5 {[%emt 0:01:12]} 5. Bg2 {[%emt 0:00:56]} O-O {[%emt 0:00:14]} 6. Nf3 {[%emt 0:02:10]} Nc6 {[%emt 0:09:33]} 7. O-O {[%emt 0:02:45]} dxe4 {[%emt 0:02:16]} 8. dxe4 {[%emt 0:00:28]} e5 {[%emt 0:00:14]} 9. c3 {[%emt 0:02:09]} a6 {[%emt 0:03:56]} 10. a4 {[%emt 0:04:13]} Be6 {[%emt 0:03:36]} 11. Nbd2 {[%emt 0:07:22]} Qc8 {[%emt 0:19:12]} 12. Nc4 {[%emt 0:10:39]} Bg4 {[%emt 0:02:53]} 13. b4 {[%emt 0:19:12]} Be7 {[%emt 0:04:51]} 14. Qc2 {[%emt 0:00:36]} Qe6 {[%emt 0:06:42]} 15. Ne3 {[%emt 0:01:17]} Bxf3 {[%emt 0:00:12]} 16. Bxf3 {[%emt 0:00:11]} Rfd8 {[%emt 0:00:06]} 17. Nd5 {[%emt 0:07:12]} Ne8 {[%emt 0:05:48]} 18. Be3 {[%emt 0:04:13]} Bf8 {[%emt 0:00:45]} 19. Rad1 {[%emt 0:03:09]} Ne7 {[%emt 0:00:48]} 20. Nxe7+ {[%emt 0:06:09]} Bxe7 {[%emt 0:00:08]} 21. Rxd8 {[%emt 0:01:52]} Rxd8 {[%emt 0:00:06]} 22. Rd1 {[%emt 0:00:20]} Rxd1+ {[%emt 0:04:35]} 23. Bxd1 {[%emt 0:01:05]} Qc6 {[%emt 0:01:52]} 24. Qd3 {[%emt 0:01:20]} Nd6 {[%emt 0:00:23]} 25. Bc5 {[%emt 0:02:50]} Bf8 {[%emt 0:08:05]} 26. Bxd6 {[%emt 0:03:53]} Qxd6 {[%emt 0:01:25]} 1/2-1/2

[Event "GER-chT States Women 2022"]
[Site "Braunfels"]
[Date "2022.06.16"]
[Round "1.11"]
[White "Kostak, Tatiana"]
[Black "Gressmann, Hanna"]
[Result "1-0"]
[ECO "C20"]
[WhiteElo "2102"]
[BlackElo "1892"]
[Annotator "NA RC"]
[PlyCount "141"]
[EventDate "2022.06.15"]
[EventType "swiss"]
[EventCountry "GER"]
[SourceTitle "playchess.com"]
[Source "ChessBase"]
[SourceQuality "1"]
[TimeControl "40/5400+30:1800+30"]

1. e4 {[%emt 0:00:03]} e5 {[%emt 0:00:21]} 2. a3 {[%emt 0:00:54]} Nf6 {[%emt 0:01:36]} 3. d4 {[%emt 0:00:22]} d6 {[%emt 0:03:26]} 4. dxe5 {[%emt 0:00:37]} dxe5 {[%emt 0:00:07]} 5. Qxd8+ {[%emt 0:00:19]} Kxd8 {[%emt 0:00:05]} 6. Nc3 {[%emt 0:02:44]} Bc5 {[%emt 0:04:31]} 7. Bg5 {[%emt 0:05:42]} c6 {[%emt 0:09:02]} 8. f3 {[%emt 0:01:48]} Be6 {[%emt 0:04:25]} 9. O-O-O+ {[%emt 0:01:38]} Kc7 {[%emt 0:01:05]} 10. Na4 {[%emt 0:01:51]} Be7 {[%emt 0:04:34]} 11. Nh3 {[%emt 0:20:01]} h6 {[%emt 0:07:30]} 12. Be3 {[%emt 0:00:50]} Nbd7 {[%emt 0:01:26]} 13. Nf2 {[%emt 0:00:31]} b5 {[%emt 0:07:21]} 14. Nc3 {[%emt 0:00:11]} Bc5 {[%emt 0:03:23]} 15. Bxc5 {[%emt 0:00:09]} Nxc5 {[%emt 0:00:06]} 16. b4 {[%emt 0:02:53]} Nb7 {[%emt 0:04:35]} 17. Nd3 {[%emt 0:07:18]} Nd7 {[%emt 0:01:26]} 18. Be2 {[%emt 0:02:32]} f6 {[%emt 0:02:06]} 19. f4 {[%emt 0:00:27]} Nd6 {[%emt 0:07:46]} 20. fxe5 {[%emt 0:02:34]} fxe5 {[%emt 0:00:35]} 21. a4 {[%emt 0:01:02]} bxa4 {[%emt 0:03:55]} 22. Nxa4 {[%emt 0:04:33]} Nxe4 {[%emt 0:02:32]} 23. Rhe1 {[%emt 0:00:24]} a5 {[%emt 0:06:34]} 24. Ndc5 {[%emt 0:01:47]} Nexc5 {[%emt 0:02:00]} 25. bxc5 {[%emt 0:00:11]} Rhb8 {[%emt 0:04:19]} 26. Bf3 {[%emt 0:02:17]} Rb4 {[%emt 0:03:20]} 27. Nb6 {[%emt 0:00:47]} Nxb6 {[%emt 0:02:21]} 28. cxb6+ {[%emt 0:00:02]} Rxb6 {[%emt 0:02:02]} 29. Rxe5 {[%emt 0:00:09]} Re8 {[%emt 0:04:09]} 30. Rxa5 {[%emt 0:00:45]} Reb8 {[%emt 0:03:12]} 31. Ra7+ {[%emt 0:01:01]} R8b7 {[%emt 0:00:52]} 32. Rxb7+ {[%emt 0:01:54]} Rxb7 {[%emt 0:00:07]} 33. Re1 {[%emt 0:02:07]} Bd5 {[%emt 0:01:25]} 34. Bxd5 {[%emt 0:00:43]} cxd5 {[%emt 0:00:06]} 35. Re6 {[%emt 0:00:08]} Kd7 {[%emt 0:01:19]} 36. Rg6 {[%emt 0:00:08]} Ke8 {[%emt 0:00:54]} 37. Kd2 {[%emt 0:00:23]} Rd7 {[%emt 0:01:01]} 38. Kd3 {[%emt 0:00:12]} Kf7 {[%emt 0:00:50]} 39. Rc6 {[%emt 0:01:11]} Ke7 {[%emt 0:01:26]} 40. Kd4 {[%emt 0:00:13]} Kf7 {[%emt 0:00:18]} 41. h4 {[%emt 0:32:45]} Re7 {[%emt 0:04:16]} 42. Kxd5 {[%emt 0:00:00]} Re2 {[%emt 0:00:30]} 43. g4 {[%emt 0:00:00]} Rg2 {[%emt 0:00:32]} 44. Rc4 {[%emt 0:00:00]} Kf6 {[%emt 0:00:55]} 45. Rf4+ {[%emt 0:00:00]} Ke7 {[%emt 0:00:54]} 46. c4 {[%emt 0:00:00]} Rd2+ {[%emt 0:00:45]} 47. Rd4 {[%emt 0:00:00]} Rf2 {[%emt 0:02:11]} 48. Kc6 {[%emt 0:00:00]} g5 {[%emt 0:02:54]} 49. hxg5 {[%emt 0:00:00]} hxg5 {[%emt 0:01:39]} 50. Re4+ {[%emt 0:00:00]} Kf6 {[%emt 0:03:40]} 51. Kd5 {[%emt 0:00:00]} Rd2+ {[%emt 0:01:24]} 52. Rd4 {[%emt 0:00:00]} Rc2 {[%emt 0:00:56]} 53. c5 {[%emt 0:00:00]} Ke7 {[%emt 0:00:43]} 54. Rc4 {[%emt 0:00:00]} Rd2+ {[%emt 0:00:24]} 55. Ke5 {[%emt 0:00:00]} Rf2 {[%emt 0:01:55]} 56. Re4 {[%emt 0:00:00]} Kd7 {[%emt 0:02:01]} 57. Kd5 {[%emt 0:00:00]} Rd2+ {[%emt 0:01:55]} 58. Rd4 {[%emt 0:00:00]} Rf2 {[%emt 0:00:43]} 59. c6+ {[%emt 0:00:00]} Kc7 {[%emt 0:00:17]} 60. Rc4 {[%emt 0:00:00]} Rf3 {[%emt 0:05:07]} 61. Re4 {[%emt 0:00:00]} Rd3+ {[%emt 0:01:26]} 62. Ke6 {[%emt 0:00:00]} Kxc6 {[%emt 0:02:20]} 63. Kf5 {[%emt 0:00:00]} Rd5+ {[%emt 0:01:00]} 64. Re5 {[%emt 0:00:00]} Rxe5+ {[%emt 0:02:47]} 65. Kxe5 {[%emt 0:00:00]} Kd7 {[%emt 0:00:04]} 66. Kf6 {[%emt 0:00:00]} Ke8 {[%emt 0:00:05]} 67. Kxg5 {[%emt 0:00:00]} Kf7 {[%emt 0:00:11]} 68. Kh6 {[%emt 0:00:00]} Kg8 {[%emt 0:00:05]} 69. g5 {[%emt 0:00:00]} Kh8 {[%emt 0:00:11]} 70. g6 {[%emt 0:00:00]} Kg8 {[%emt 0:00:06]} 71. g7 {[%emt 0:00:00]} 1-0

[Event "GER-chT States Women 2022"]
[Site "Braunfels"]
[Date "2022.06.16"]
[Round "1.12"]
[White "Falke, Ornella"]
[Black "Valkova, Angelika"]
[Result "0-1"]
[ECO "B10"]
[WhiteElo "1844"]
[BlackElo "2066"]
[Annotator "NA RC"]
[PlyCount "76"]
[EventDate "2022.06.15"]
[EventType "swiss"]
[EventCountry "GER"]
[SourceTitle "playchess.com"]
[Source "ChessBase"]
[SourceQuality "1"]
[TimeControl "40/5400+30:1800+30"]

1. e4 {[%emt 0:00:12]} c6 {[%emt 0:00:11]} 2. Nc3 {[%emt 0:00:43]} d5 {[%emt 0:00:14]} 3. Nf3 {[%emt 0:00:07]} dxe4 {[%emt 0:00:08]} 4. Nxe4 {[%emt 0:00:09]} Nf6 {[%emt 0:00:04]} 5. Nxf6+ {[%emt 0:03:41]} exf6 {[%emt 0:00:06]} 6. d4 {[%emt 0:01:08]} Bd6 {[%emt 0:00:21]} 7. Bd3 {[%emt 0:01:43]} O-O {[%emt 0:00:07]} 8. Be3 {[%emt 0:08:10]} a5 {[%emt 0:10:10]} 9. c3 {[%emt 0:02:19]} Re8 {[%emt 0:00:36]} 10. Qc2 {[%emt 0:04:32]} Bf4 {[%emt 0:08:55]} 11. Bxh7+ {[%emt 0:02:57]} Kh8 {[%emt 0:00:10]} 12. Bd3 {[%emt 0:11:49]} Bxe3 {[%emt 0:07:53]} 13. fxe3 {[%emt 0:00:06]} Rxe3+ {[%emt 0:00:06]} 14. Kd2 {[%emt 0:02:05]} Re8 {[%emt 0:02:03]} 15. Rae1 {[%emt 0:00:08]} Be6 {[%emt 0:01:37]} 16. Re4 {[%emt 0:03:21]} g6 {[%emt 0:01:33]} 17. Kc1 {[%emt 0:06:53]} Kg7 {[%emt 0:03:10]} 18. Rhe1 {[%emt 0:01:07]} Nd7 {[%emt 0:01:02]} 19. Nh4 {[%emt 0:05:47]} Nf8 {[%emt 0:01:08]} 20. g4 {[%emt 0:04:26]} Qd5 {[%emt 0:01:41]} 21. Nf3 {[%emt 0:17:55]} Qxa2 {[%emt 0:01:27]} 22. h4 {[%emt 0:04:44]} a4 {[%emt 0:18:01]} 23. g5 {[%emt 0:02:14]} f5 {[%emt 0:00:56]} 24. R4e2 {[%emt 0:00:27]} Bb3 {[%emt 0:11:02]} 25. Qb1 Rxe2 {[%emt 0:00:56]} 26. Rxe2 {[%emt 0:01:24]} Ne6 {[%emt 0:01:03]} 27. h5 {[%emt 0:02:42]} Qxb1+ {[%emt 0:03:18]} 28. Kxb1 {[%emt 0:00:27]} Bd5 {[%emt 0:03:43]} 29. Nh4 {[%emt 0:01:07]} Nf4 {[%emt 0:00:14]} 30. h6+ {[%emt 0:00:37]} Kh7 {[%emt 0:00:44]} 31. c4 {[%emt 0:03:45]} Nxe2 {[%emt 0:00:43]} 32. Bxe2 {[%emt 0:00:31]} Re8 {[%emt 0:00:38]} 33. Bd3 {[%emt 0:03:14]} Bh1 {[%emt 0:01:06]} 34. Kc2 {[%emt 0:00:58]} Re3 {[%emt 0:00:19]} 35. Kd2 {[%emt 0:00:06]} Rh3 {[%emt 0:00:36]} 36. Nxf5 {[%emt 0:00:35]} Rh2+ {[%emt 0:00:06]} 37. Kc3 {[%emt 0:00:08]} gxf5 {[%emt 0:00:09]} 38. Bxf5+ {[%emt 0:00:05]} Kh8 {[%emt 0:00:17]} 0-1

[Event "GER-chT States Women 2022"]
[Site "Braunfels"]
[Date "2022.06.16"]
[Round "1.13"]
[White "Gheng, Simona"]
[Black "Mundt, Alexandra"]
[Result "1-0"]
[ECO "B06"]
[WhiteElo "1944"]
[BlackElo "1782"]
[Annotator "TA"]
[PlyCount "85"]
[EventDate "2022.06.15"]
[EventType "swiss"]
[EventCountry "GER"]
[SourceTitle "playchess.com"]
[Source "ChessBase"]
[SourceQuality "1"]
[TimeControl "40/5400+30:1800+30"]

{[%evp 19,85,-9,-5,-41,-43,-41,-46,-43,-49,-43,-10,-13,0,0,13,0,26,13,29,19,69,58,58,65,58,58,57,56,58,58,58,58,61,22,118,124,259,263,256,250,402,398,382,352,386,290,605,589,612,588,927,135,907,530,1478,1059,2970,2881,4714,584,1652,1212,29965,29969,29986,29987,29990,29991]} 1. e4 {[%emt 0:00:03]} g6 {[%emt 0:00:05]} 2. d4 {[%emt 0:00:26]} Bg7 {[%emt 0:00:08]} 3. Nf3 {[%emt 0:00:19]} c5 {[%emt 0:00:13]} 4. Bc4 {[%emt 0:02:35]} cxd4 {[%emt 0:02:27]} 5. Nxd4 {[%emt 0:01:44]} d6 {[%emt 0:04:27]} 6. O-O {[%emt 0:01:58]} Nf6 {[%emt 0:01:19]} 7. Nc3 {[%emt 0:00:26]} Nc6 {[%emt 0:00:26]} 8. Nxc6 {[%emt 0:02:39]} bxc6 {[%emt 0:00:09]} 9. f4 {[%emt 0:00:58]} Qb6+ {[%emt 0:08:34]} 10. Kh1 {[%emt 0:00:14]} O-O {[%emt 0:02:06][%cal Of6e4]} 11. h3 {[%emt 0:01:47] [#] B57: Classical Sicilian: Sozin with 6...Qb6.} Nxe4 $1 {[%emt 0:13:43]} 12. Nxe4 {[%emt 0:02:17] Threatens to win with Ng5.} d5 {[%emt 0:00:05]} 13. Bd3 {[%emt 0:00:22] aiming for Nc3. Black is slightly better.} (13. Bxd5 cxd5 14. Nf2 (14. Qxd5 $2 Bb7 $19) 14... Rb8 $17) 13... dxe4 {[%emt 0:00:16]} 14. Bxe4 {[%emt 0:00:26] [#]} Bb7 $146 {[%emt 0:08:47]} (14... Rd8 $5 {[%cal Rd8d1]} 15. Qe1 Ba6 $11) ({Predecessor:} 14... Ba6 15. Re1 e6 16. Qf3 Rac8 17. c3 c5 18. Qf2 Bc4 19. Be3 a5 20. Red1 Rc7 {0-1 (42) Loubatiere,J-Relange,E (2505) Corsico 1997}) 15. f5 {[%emt 0:03:39]} Rad8 {[%emt 0:05:38]} (15... Bxb2 $2 16. Rb1 $18) 16. Qf3 {[%emt 0:01:14]} Ba6 {[%emt 0:04:37]} (16... Bxb2 $2 17. Rb1 $18) 17. Re1 {[%emt 0:04:36]} c5 {[%emt 0:04:28]} 18. Bg5 {[%emt 0:03:47]} Rd7 {[%emt 0:03:48]} 19. Rad1 {[%emt 0:06:40]} Rfd8 {[%emt 0:09:51]} (19... Rxd1 $11 20. Rxd1 Bf6) 20. Rxd7 {[%emt 0:01:22]} Rxd7 {[%emt 0:00:10]} 21. Bc6 {[%emt 0:01:30]} Rc7 {[%emt 0:07:19]} 22. Bd5 {[%emt 0:06:49]} Bf6 {[%emt 0:06:57]} 23. Bh6 {[%emt 0:09:20] [#] fxg6 is the strong threat.} Bb7 $1 {[%emt 0:03:06]} 24. Rd1 {[%emt 0:02:19]} ({Reject} 24. fxg6 hxg6 25. b3 Rd7 26. Bxb7 Qxb7 $11) 24... Bxd5 {[%emt 0:01:46]} 25. Qxd5 {[%emt 0:00:41][%cal Rd5d8]} Rc8 {[%emt 0:00:06] Prevents Qd8+.} 26. b3 {[%emt 0:02:47]} (26. Qd7 $5 {[%cal Rd7c8]} Rb8 27. b3 $14) 26... Bg7 {[%emt 0:04:07]} (26... Qc7 $11) 27. Qd7 $40 {[%emt 0:01:12][%csl LRc8,LRe7][%mdl 128] Black is in trouble. White is more active.} Rf8 {[%emt 0:02:19]} (27... Qb8 $16 {was necessary.}) 28. Bxg7 $18 {[%emt 0:00:48]} Kxg7 {[%emt 0:00:25]} 29. Qxe7 {[%emt 0:00:10][%mdl 4096] Endgame KQR-KQR} c4 $2 {[%emt 0:04:11]} (29... Qf6 {was worth a try.} 30. Qxc5 Rd8 31. Rxd8 Qxd8) 30. Rd6 {[%emt 0:08:28]} Qb8 {[%emt 0:03:24]} 31. f6+ {[%emt 0:01:59]} ({Not} 31. fxg6 hxg6 32. Qe5+ (32. bxc4 Qb1+ 33. Kh2 Qxc2 $16) 32... Kg8 $18) 31... Kh8 {[%emt 0:00:25]} 32. Rd1 {[%emt 0:03:37]} cxb3 {[%emt 0:00:10]} (32... c3 33. Rd7 a6) 33. axb3 {[%emt 0:00:23]} Kg8 {[%emt 0:00:52]} 34. Rd7 {[%emt 0:01:03]} Kh8 {[%emt 0:00:26]} 35. Qd6 $2 {[%emt 0:01:27]} (35. c4 $18 {and White stays clearly on top.}) 35... Qe8 $2 {[%emt 0:00:32][%mdl 8192] This costs Black the game.} (35... Qxd6 $16 36. Rxd6 h5) 36. Rxa7 {[%emt 0:01:28]} Qe1+ {[%emt 0:00:07]} 37. Kh2 {[%emt 0:00:05][%cal Rd6f8]} Qe8 {[%emt 0:00:39]} 38. c4 {[%emt 0:00:37][%cal Bc2c4,Bc4c5,Bc5c6][%mdl 32]} Qc8 {[%emt 0:00:10]} 39. Qc7 {[%emt 0:01:38]} (39. Rd7 $142 {Intending c5 and mate.} Qb8 40. Qxb8 Rxb8 41. c5) 39... Qe8 {[%emt 0:00:20]} 40. c5 {[%emt 0:01:43]} Qe6 {[%emt 0:00:26]} 41. Qd6 {[%emt 0:30:15][%cal Rd6f8] White mates.} Qc8 {[%emt 0:30:36]} 42. c6 {[%emt 0:00:29]} Kg8 {[%emt 0:00:00]} 43. Rd7 {[%emt 0:00:00] Weighted Error Value: White=0.85/Black=0.60} 1-0